fUSD/lending_fUSD_20240613
["ID","MTS","AMOUNT","RATE_DAILY","PERIOD"]
[329371911,1718290352957,-1395.84,0.00025753,3]
[329371912,1718290352970,-653.41,0.00025753,3]
[329371913,1718290352989,-500.0,0.00025753,3]
[329371914,1718290353003,-500.0,0.00025753,3]
[329371915,1718290353017,-689.6,0.00025753,3]
[329371916,1718290353030,-2127.64,0.00025753,3]
[329371917,1718290353048,-761.09,0.00025753,3]
[329371918,1718290353081,-500.0,0.00025753,3]
[329371919,1718290353099,-587.76,0.00025753,3]
[329371920,1718290353112,-500.0,0.00025753,3]
[329371921,1718290353125,-605.86,0.00025753,3]
[329371922,1718290353138,-500.0,0.00025753,3]
[329371923,1718290353159,-920.47,0.00025753,3]
[329371924,1718290353184,-1177.4,0.00025753,3]
[329371925,1718290353208,-500.0,0.00025753,3]
[329371926,1718290353227,-1386.9,0.00025753,3]
[329371927,1718290353238,-744.26,0.00025753,3]
[329371928,1718290353251,-887.49,0.00025753,3]
[329371929,1718290353266,-500.0,0.00025753,3]
[329371930,1718290353276,-500.0,0.00025753,3]
[329371931,1718290353286,-500.0,0.00025753,3]
[329371932,1718290353299,-7491.49,0.00025753,3]
[329371933,1718290353309,-500.0,0.00025753,3]
[329371934,1718290353324,-2324.66,0.00025753,3]
[329371935,1718290353340,-500.0,0.00025753,3]
[329371936,1718290353360,-487.47,0.00025753,3]
[329371937,1718290353370,-1842.78,0.00025753,3]
[329371938,1718290353383,-2097.92,0.00025753,3]
[329371939,1718290353393,-1279.47,0.00025753,3]
[329371940,1718290353406,-394.23,0.00025798,2]
[329371941,1718290353417,-1364.56,0.000258,2]
[329371942,1718290353429,-200.0,0.00025822,2]
[329371943,1718290353439,-12098.40973595,0.00025874,2]
[329371944,1718290353466,-324.12418971,0.000259,2]
[329371945,1718290353476,-2643.2,0.00025999,30]
[329371946,1718290353493,-22605.13368472,0.00026,5]
[329371947,1718290353503,-1620.46,0.00026,2]
[329371948,1718290353515,-500.0,0.00026027,3]
[329371949,1718290353532,-500.0,0.00026027,3]
[329371950,1718290353549,-500.0,0.00026027,3]
[329371951,1718290353559,-500.0,0.00026027,3]
[329371952,1718290353569,-290.09,0.00026027,3]
[329371953,1718290353580,-500.0,0.00026027,3]
[329371954,1718290353591,-500.0,0.00026027,3]
[329371955,1718290353600,-500.0,0.00026027,3]
[329371956,1718290353616,-379.61,0.00026027,3]
[329371957,1718290353635,-500.0,0.00026027,3]
[329371958,1718290353648,-500.0,0.00026027,3]
[329371959,1718290353662,-500.0,0.00026027,3]
[329371960,1718290353675,-500.0,0.00026027,3]
[329371961,1718290353685,-500.0,0.00026027,3]
[329371962,1718290353724,-500.0,0.00026027,3]
[329371963,1718290353735,-500.0,0.00026027,3]
[329371964,1718290353747,-500.0,0.00026027,3]
[329371965,1718290353758,-500.0,0.00026027,3]
[329371966,1718290353773,-198.26240615,0.00026027,3]
[329371967,1718290353792,-305.9695069,0.00026027,3]
[329371968,1718290353811,-500.0,0.00026027,3]
[329371969,1718290353822,-500.98,0.00026027,3]
[329371970,1718290353841,-500.0,0.00026027,3]
[329371971,1718290353857,-500.0,0.00026027,3]
[329371972,1718290353879,-500.0,0.00026027,3]
[329371973,1718290353900,-500.0,0.00026027,3]
[329371974,1718290353923,-182.27,0.00026027,3]
[329371975,1718290353964,-266.79,0.00026027,3]
[329371976,1718290353985,-500.0,0.00026027,3]
[329371977,1718290354020,-500.0,0.00026027,3]
[329371978,1718290354048,-500.0,0.00026027,3]
[329371979,1718290354090,-809.41,0.00026027,3]
[329371980,1718290354103,-507.94,0.00026027,3]
[329371981,1718290354128,-500.0,0.00026027,3]
[329371982,1718290354143,-500.0,0.00026027,3]
[329371983,1718290354171,-500.0,0.00026027,3]
[329371984,1718290354202,-500.0,0.00026027,3]
[329371985,1718290354236,-500.0,0.00026027,3]
[329371986,1718290354248,-500.0,0.00026027,3]
[329371987,1718290354259,-500.0,0.00026027,3]
[329371988,1718290354292,-500.0,0.00026027,3]
[329371989,1718290354304,-500.0,0.00026027,3]
[329371990,1718290354339,-1934.26,0.00026027,3]
[329371991,1718290354371,-181.16,0.00026027,3]
[329371992,1718290354435,-500.0,0.00026027,3]
[329371993,1718290354446,-401.37,0.00026027,3]
[329371994,1718290354458,-544.35,0.00026027,3]
[329371995,1718290354471,-543.78,0.00026027,3]
[329371996,1718290354493,-642.94517075,0.00026027,3]
[329371997,1718290354532,-500.0,0.00026027,3]
[329371998,1718290354564,-500.0,0.00026027,3]
[329371999,1718290354584,-879.88,0.00026027,3]
[329372000,1718290354614,-259.70291381,0.00026027,3]
[329372001,1718290354627,-500.0,0.00026027,3]
[329372002,1718290354644,-500.0,0.00026027,3]
[329372003,1718290354662,-1048.93,0.00026027,3]
[329372004,1718290354682,-1012.91,0.00026027,3]
[329372005,1718290354699,-500.0,0.00026027,3]
[329372006,1718290354712,-500.0,0.00026027,3]
[329372007,1718290354734,-500.0,0.00026027,3]
[329372008,1718290354784,-500.0,0.00026027,3]
[329372009,1718290354807,-500.0,0.00026027,3]
[329372010,1718290354825,-500.0,0.00026027,3]
[329372011,1718290354838,-11632.61,0.00026027,3]
[329372012,1718290354899,-977.44,0.00026027,3]
[329372013,1718290354956,-500.0,0.00026027,3]
[329372014,1718290354970,-651.87,0.00026027,3]
[329372015,1718290354988,-639.07,0.00026027,3]
[329372016,1718290354999,-997.51,0.00026027,3]
[329372017,1718290355020,-500.0,0.00026027,3]
[329372018,1718290355043,-1311.35,0.00026027,3]
[329372019,1718290355081,-643.19,0.00026027,3]
[329372020,1718290355108,-2199.7,0.00026027,3]
[329372021,1718290355128,-500.0,0.00026027,3]
[329372022,1718290355189,-1295.74,0.00026027,3]
[329372023,1718290355220,-613.68,0.00026027,3]
[329372024,1718290355238,-1323.91,0.00026027,3]
[329372025,1718290355249,-975.22,0.00026027,3]
[329372026,1718290355260,-1550.77,0.00026027,3]
[329372027,1718290355274,-500.0,0.00026027,3]
[329372028,1718290355287,-228.57818261,0.00026027,3]
[329372029,1718290355298,-235.81,0.00026027,3]
[329372030,1718290355324,-12766.99,0.00026027,3]
[329372031,1718290355337,-513.36,0.00026027,3]
[329372032,1718290355349,-500.0,0.00026027,3]
[329372033,1718290355359,-559.41,0.00026027,3]
[329372034,1718290355370,-500.0,0.00026027,3]
[329372035,1718290355383,-500.0,0.00026027,3]
[329372036,1718290355398,-679.33,0.00026027,3]
[329372037,1718290355410,-500.0,0.00026027,3]
[329372038,1718290355424,-3794.7,0.00026027,3]
[329372039,1718290355434,-500.0,0.00026027,3]
[329372040,1718290355445,-500.0,0.00026027,3]
[329372041,1718290355476,-500.0,0.00026027,3]
[329372042,1718290355502,-500.0,0.00026027,3]
[329372043,1718290355519,-500.0,0.00026027,3]
[329372044,1718290355533,-500.0,0.00026027,3]
[329372045,1718290355578,-1057.5,0.00026027,3]
[329372046,1718290355591,-500.0,0.00026027,3]
[329372047,1718290355624,-500.0,0.00026027,3]
[329372048,1718290355639,-500.0,0.00026027,3]
[329372049,1718290355664,-2414.22,0.00026027,3]
[329372050,1718290355715,-500.0,0.00026027,3]
[329372051,1718290355746,-500.0,0.00026027,3]
[329372052,1718290355761,-500.0,0.00026027,3]
[329372053,1718290355789,-500.0,0.00026027,3]
[329372054,1718290355802,-654.22,0.00026027,3]
[329372055,1718290355825,-500.0,0.00026027,3]
[329372056,1718290355841,-1125.9,0.00026027,3]
[329372057,1718290355861,-492.2,0.00026027,3]
[329372058,1718290355923,-500.0,0.00026027,3]
[329372059,1718290355937,-941.25,0.00026027,3]
[329372060,1718290355954,-500.0,0.00026027,3]
[329372061,1718290355967,-500.0,0.00026027,3]
[329372062,1718290356006,-531.14,0.00026027,3]
[329372063,1718290356026,-500.0,0.00026027,3]
[329372064,1718290356037,-500.0,0.00026027,3]
[329372065,1718290356047,-500.0,0.00026027,3]
[329372066,1718290356067,-1033.7,0.00026027,3]
[329372067,1718290356100,-500.0,0.00026027,3]
[329372068,1718290356134,-500.0,0.00026027,3]
[329372069,1718290356176,-2592.34,0.00026027,3]
[329372070,1718290356229,-500.0,0.00026027,3]
[329372071,1718290356242,-500.0,0.00026027,3]
[329372072,1718290356266,-500.0,0.00026027,3]
[329372073,1718290356309,-500.0,0.00026027,3]
[329372074,1718290356326,-588.3,0.00026027,3]
[329372075,1718290356359,-500.0,0.00026027,3]
[329372076,1718290356372,-500.0,0.00026027,3]
[329372077,1718290356401,-570.91,0.00026027,3]
[329372078,1718290356421,-1292.93,0.00026027,3]
[329372079,1718290356447,-637.83,0.00026027,3]
[329372080,1718290356459,-500.0,0.00026027,3]
[329372081,1718290356473,-533.76,0.00026027,3]
[329372082,1718290356488,-816.12,0.00026027,3]
[329372083,1718290356502,-2201.98,0.00026027,3]
[329372084,1718290356516,-990.35,0.00026027,3]
[329372085,1718290356532,-866.3,0.00026027,3]
[329372086,1718290356549,-1039.78,0.00026027,3]
[329372087,1718290356567,-1827.63,0.00026027,3]
[329372088,1718290356579,-1377.98,0.00026027,3]
[329372089,1718290356603,-204.12073747,0.00026027,3]
[329372090,1718290356616,-511.34,0.00026027,3]
[329372091,1718290356637,-500.0,0.00026027,3]
[329372092,1718290356661,-4825.81,0.00026027,2]
[329372093,1718290356678,-4825.81,0.00026027,2]
[329372094,1718290356698,-4825.81,0.00026027,2]
[329372095,1718290356710,-4825.81,0.00026027,3]
[329372096,1718290356730,-4825.81,0.00026027,3]
[329372097,1718290356743,-1395.84,0.00026027,3]
[329372098,1718290356756,-4825.81,0.00026027,3]
[329372099,1718290356773,-4825.81,0.00026027,3]
[329372100,1718290356800,-4825.81,0.00026027,3]
[329372101,1718290356812,-653.41,0.00026027,3]
[329372102,1718290356839,-500.0,0.00026027,3]
[329372103,1718290356879,-500.0,0.00026027,3]
[329372104,1718290356910,-689.6,0.00026027,3]
[329372105,1718290356925,-2127.64,0.00026027,3]
[329372106,1718290356950,-761.09,0.00026027,3]
[329372107,1718290356977,-500.0,0.00026027,3]
[329372108,1718290356988,-587.76,0.00026027,3]
[329372109,1718290357036,-414.68937064,0.00026027,3]
[329372110,1718290357058,-605.86,0.00026027,3]
[329372111,1718290357093,-500.0,0.00026027,3]
[329372112,1718290357120,-920.47,0.00026027,3]
[329372113,1718290357131,-1177.4,0.00026027,3]
[329372114,1718290357144,-500.0,0.00026027,3]
[329372115,1718290357156,-1386.9,0.00026027,3]
[329372116,1718290357171,-744.26,0.00026027,3]
[329372117,1718290357182,-887.49,0.00026027,3]
[329372118,1718290357224,-500.0,0.00026027,3]
[329372119,1718290357242,-327.29,0.00026027,3]
[329372120,1718290357253,-500.0,0.00026027,3]
[329372121,1718290357264,-7491.49,0.00026027,3]
[329372122,1718290357288,-500.0,0.00026027,3]
[329372123,1718290357312,-2324.66,0.00026027,3]
[329372124,1718290357324,-500.0,0.00026027,3]
[329372125,1718290357336,-1842.78,0.00026027,3]
[329372126,1718290357348,-2097.92,0.00026027,3]
[329372127,1718290357361,-1279.47,0.00026027,3]
[329372128,1718290357381,-5373.51,0.000261,2]
[329372129,1718290357396,-150.0,0.000261,4]
[329372130,1718290357420,-4805.0,0.00026153,2]
[329372131,1718290357468,-500.0,0.00026301,3]
[329372132,1718290357517,-345.18354407,0.00026301,3]
[329372133,1718290357576,-323.86358249,0.00026301,3]
[329372134,1718290357640,-500.0,0.00026301,3]
[329372135,1718290357673,-500.0,0.00026301,3]
[329372136,1718290357687,-500.0,0.00026301,3]
[329372137,1718290357703,-500.0,0.00026301,3]
[329372138,1718290357718,-500.0,0.00026301,3]
[329372139,1718290357738,-500.0,0.00026301,3]
[329372140,1718290357754,-500.0,0.00026301,3]
[329372141,1718290357771,-500.0,0.00026301,3]
[329372142,1718290357787,-500.0,0.00026301,3]
[329372143,1718290357803,-500.0,0.00026301,3]
[329372144,1718290357823,-500.0,0.00026301,3]
[329372145,1718290357841,-241.75672339,0.00026301,3]
[329372146,1718290357858,-500.0,0.00026301,3]
[329372147,1718290357870,-500.0,0.00026301,3]
[329372148,1718290357884,-500.98,0.00026301,3]
[329372149,1718290357902,-500.0,0.00026301,3]
[329372150,1718290357916,-500.0,0.00026301,3]
[329372151,1718290357949,-500.0,0.00026301,3]
[329372152,1718290357975,-500.0,0.00026301,3]
[329372153,1718290357993,-182.27,0.00026301,3]
[329372154,1718290358009,-500.0,0.00026301,3]
[329372155,1718290358046,-500.0,0.00026301,3]
[329372156,1718290358060,-500.0,0.00026301,3]
[329372157,1718290358115,-809.41,0.00026301,3]
[329372158,1718290358176,-507.94,0.00026301,3]
[329372159,1718290358196,-500.0,0.00026301,3]
[329372160,1718290358217,-547.85,0.00026301,3]
[329372161,1718290358276,-500.0,0.00026301,3]
[329372162,1718290358448,-500.0,0.00026301,3]
[329372163,1718290358460,-500.0,0.00026301,3]
[329372164,1718290358492,-500.0,0.00026301,3]
[329372165,1718290358504,-500.0,0.00026301,3]
[329372166,1718290358527,-500.0,0.00026301,3]
[329372167,1718290358556,-394.553163,0.00026301,3]
[329372168,1718290358593,-1934.26,0.00026301,3]
[329372169,1718290358620,-467.02,0.00026301,3]
[329372170,1718290358638,-544.35,0.00026301,3]
[329372171,1718290358668,-500.0,0.00026301,3]
[329372172,1718290358682,-500.0,0.00026301,3]
[329372173,1718290358699,-879.88,0.00026301,3]
[329372174,1718290358714,-500.0,0.00026301,3]
[329372175,1718290358730,-500.0,0.00026301,3]
[329372176,1718290358748,-1048.93,0.00026301,3]
[329372177,1718290358766,-1012.91,0.00026301,3]
[329372178,1718290358803,-500.0,0.00026301,3]
[329372179,1718290358830,-500.0,0.00026301,3]
[329372180,1718290358859,-500.0,0.00026301,3]
[329372181,1718290358878,-259.62,0.00026301,3]
[329372182,1718290358889,-500.0,0.00026301,3]
[329372183,1718290358904,-500.0,0.00026301,3]
[329372184,1718290358917,-11632.61,0.00026301,3]
[329372185,1718290358937,-977.44,0.00026301,3]
[329372186,1718290358976,-500.0,0.00026301,3]
[329372187,1718290358989,-651.87,0.00026301,3]
[329372188,1718290359010,-639.07,0.00026301,3]
[329372189,1718290359060,-997.51,0.00026301,3]
[329372190,1718290359082,-264.54,0.00026301,3]
[329372191,1718290359101,-1311.35,0.00026301,3]
[329372192,1718290359142,-643.19,0.00026301,3]
[329372193,1718290359156,-2199.7,0.00026301,3]
[329372194,1718290359201,-500.0,0.00026301,3]
[329372195,1718290359217,-1295.74,0.00026301,3]
[329372196,1718290359244,-613.68,0.00026301,3]
[329372197,1718290359265,-1323.91,0.00026301,3]
[329372198,1718290359283,-975.22,0.00026301,3]
[329372199,1718290359310,-1550.77,0.00026301,3]
[329372200,1718290359324,-500.0,0.00026301,3]
[329372201,1718290359337,-12766.99,0.00026301,3]
[329372202,1718290359364,-513.36,0.00026301,3]
[329372203,1718290359376,-500.0,0.00026301,3]
[329372204,1718290359410,-559.41,0.00026301,3]
[329372205,1718290359423,-500.0,0.00026301,3]
[329372206,1718290359434,-500.0,0.00026301,3]
[329372207,1718290359452,-679.33,0.00026301,3]
[329372208,1718290359465,-500.0,0.00026301,3]
[329372209,1718290359476,-3794.7,0.00026301,3]
[329372210,1718290359491,-500.0,0.00026301,3]
[329372211,1718290359518,-500.0,0.00026301,3]
[329372212,1718290359545,-500.0,0.00026301,3]
[329372213,1718290359565,-500.0,0.00026301,3]
[329372214,1718290359593,-500.0,0.00026301,3]
[329372215,1718290359614,-500.0,0.00026301,3]
[329372216,1718290359634,-1057.5,0.00026301,3]
[329372217,1718290359704,-608.3733118,0.00026301,3]
[329372218,1718290359754,-500.0,0.00026301,3]
[329372219,1718290359824,-500.0,0.00026301,3]
[329372220,1718290359841,-2414.22,0.00026301,3]
[329372221,1718290359857,-500.0,0.00026301,3]
[329372222,1718290359892,-500.0,0.00026301,3]
[329372223,1718290359905,-359.37159343,0.00026301,3]
[329372224,1718290359921,-500.0,0.00026301,3]
[329372225,1718290359953,-654.22,0.00026301,3]
[329372226,1718290359976,-500.0,0.00026301,3]
[329372227,1718290360006,-1125.9,0.00026301,3]
[329372228,1718290360045,-500.0,0.00026301,3]
[329372229,1718290360114,-941.25,0.00026301,3]
[329372230,1718290360133,-500.0,0.00026301,3]
[329372231,1718290360212,-500.0,0.00026301,3]
[329372232,1718290360236,-531.14,0.00026301,3]
[329372233,1718290360265,-500.0,0.00026301,3]
[329372234,1718290360294,-500.0,0.00026301,3]
[329372235,1718290360310,-1033.7,0.00026301,3]
[329372236,1718290360325,-500.0,0.00026301,3]
[329372237,1718290360338,-500.0,0.00026301,3]
[329372238,1718290360350,-2592.34,0.00026301,3]
[329372239,1718290360377,-500.0,0.00026301,3]
[329372240,1718290360395,-500.0,0.00026301,3]
[329372241,1718290360421,-411.96741413,0.00026301,3]
[329372242,1718290360458,-500.0,0.00026301,3]
[329372243,1718290360470,-588.3,0.00026301,3]
[329372244,1718290360488,-500.0,0.00026301,3]
[329372245,1718290360536,-500.0,0.00026301,3]
[329372246,1718290360548,-570.91,0.00026301,3]
[329372247,1718290360600,-1292.93,0.00026301,3]
[329372248,1718290360620,-637.83,0.00026301,3]
[329372249,1718290360632,-304.80881487,0.00026301,3]
[329372250,1718290360675,-533.76,0.00026301,3]
[329372251,1718290360691,-816.12,0.00026301,3]
[329372252,1718290360705,-2201.98,0.00026301,3]
[329372253,1718290360747,-990.35,0.00026301,3]
[329372254,1718290360792,-866.3,0.00026301,3]
[329372255,1718290360804,-1039.78,0.00026301,3]
[329372256,1718290360856,-1827.63,0.00026301,3]
[329372257,1718290360878,-1377.98,0.00026301,3]
[329372258,1718290360890,-511.34,0.00026301,3]
[329372259,1718290360902,-500.0,0.00026301,3]
[329372260,1718290360914,-1395.84,0.00026301,3]
[329372261,1718290360927,-4825.81,0.00026301,3]
[329372262,1718290360985,-653.41,0.00026301,3]
[329372263,1718290361008,-500.0,0.00026301,3]
[329372264,1718290361052,-500.0,0.00026301,3]
[329372265,1718290361071,-689.6,0.00026301,3]
[329372266,1718290361100,-2127.64,0.00026301,3]
[329372267,1718290361120,-761.09,0.00026301,3]
[329372268,1718290361131,-500.0,0.00026301,3]
[329372269,1718290361143,-587.76,0.00026301,3]
[329372270,1718290361169,-605.86,0.00026301,3]
[329372271,1718290361180,-500.0,0.00026301,3]
[329372272,1718290361198,-920.47,0.00026301,3]
[329372273,1718290361222,-1177.4,0.00026301,3]
[329372274,1718290361235,-500.0,0.00026301,3]
[329372275,1718290361252,-1386.9,0.00026301,3]
[329372276,1718290361264,-744.26,0.00026301,3]
[329372277,1718290361279,-887.49,0.00026301,3]
[329372278,1718290361296,-500.0,0.00026301,3]
[329372279,1718290361335,-500.0,0.00026301,3]
[329372280,1718290361349,-7491.49,0.00026301,3]
[329372281,1718290361360,-500.0,0.00026301,3]
[329372282,1718290361376,-2324.66,0.00026301,3]
[329372283,1718290361410,-500.0,0.00026301,3]
[329372284,1718290361434,-1842.78,0.00026301,3]
[329372285,1718290361447,-2097.92,0.00026301,3]
[329372286,1718290361481,-1279.47,0.00026301,3]
[329372287,1718290361496,-15548.41599283,0.00026375,2]
[329372288,1718290361518,-495.94955,0.00026575,3]
[329372289,1718290361529,-500.0,0.00026575,3]
[329372290,1718290361542,-500.0,0.00026575,3]
[329372291,1718290361570,-500.0,0.00026575,3]
[329372292,1718290361589,-500.0,0.00026575,3]
[329372293,1718290361614,-500.0,0.00026575,3]
[329372294,1718290361625,-500.0,0.00026575,3]
[329372295,1718290361636,-500.0,0.00026575,3]
[329372296,1718290361652,-191.88208036,0.00026575,3]
[329372297,1718290361664,-500.0,0.00026575,3]
[329372298,1718290361677,-500.0,0.00026575,3]
[329372299,1718290361705,-500.0,0.00026575,3]
[329372300,1718290361715,-461.158095,0.00026575,3]
[329372301,1718290361752,-500.0,0.00026575,3]
[329372302,1718290361767,-500.98,0.00026575,3]
[329372303,1718290361804,-500.0,0.00026575,3]
[329372304,1718290361820,-500.0,0.00026575,3]
[329372305,1718290361834,-500.0,0.00026575,3]
[329372306,1718290361856,-500.0,0.00026575,3]
[329372307,1718290361876,-182.27,0.00026575,3]
[329372308,1718290361889,-500.0,0.00026575,3]
[329372309,1718290361902,-500.0,0.00026575,3]
[329372310,1718290361920,-809.41,0.00026575,3]
[329372311,1718290361952,-507.94,0.00026575,3]
[329372312,1718290361972,-500.0,0.00026575,3]
[329372313,1718290361993,-500.0,0.00026575,3]
[329372314,1718290362009,-500.0,0.00026575,3]
[329372315,1718290362028,-500.0,0.00026575,3]
[329372316,1718290362053,-500.0,0.00026575,3]
[329372317,1718290362080,-182.50935416,0.00026575,3]
[329372318,1718290362096,-500.0,0.00026575,3]
[329372319,1718290362106,-1934.26,0.00026575,3]
[329372320,1718290362117,-544.35,0.00026575,3]
[329372321,1718290362128,-500.0,0.00026575,3]
[329372322,1718290362138,-500.0,0.00026575,3]
[329372323,1718290362165,-879.88,0.00026575,3]
[329372324,1718290362177,-500.0,0.00026575,3]
[329372325,1718290362189,-181.9,0.00026575,3]
[329372326,1718290362213,-1048.93,0.00026575,3]
[329372327,1718290362225,-1012.91,0.00026575,3]
[329372328,1718290362244,-366.96,0.00026575,3]
[329372329,1718290362257,-500.0,0.00026575,3]
[329372330,1718290362275,-500.0,0.00026575,3]
[329372331,1718290362299,-223.5418877,0.00026575,3]
[329372332,1718290362313,-252.11806974,0.00026575,3]
[329372333,1718290362326,-11632.61,0.00026575,3]
[329372334,1718290362339,-977.44,0.00026575,3]
[329372335,1718290362368,-500.0,0.00026575,3]
[329372336,1718290362389,-651.87,0.00026575,3]
[329372337,1718290362401,-639.07,0.00026575,3]
[329372338,1718290362412,-997.51,0.00026575,3]
[329372339,1718290362424,-1311.35,0.00026575,3]
[329372340,1718290362436,-643.19,0.00026575,3]
[329372341,1718290362446,-2199.7,0.00026575,3]
[329372342,1718290362460,-500.0,0.00026575,3]
[329372343,1718290362477,-1295.74,0.00026575,3]
[329372344,1718290362501,-613.68,0.00026575,3]
[329372345,1718290362534,-1323.91,0.00026575,3]
[329372346,1718290362566,-975.22,0.00026575,3]
[329372347,1718290362597,-1550.77,0.00026575,3]
[329372348,1718290362626,-500.0,0.00026575,3]
[329372349,1718290362637,-12766.99,0.00026575,3]
[329372350,1718290362649,-513.36,0.00026575,3]
[329372351,1718290362660,-500.0,0.00026575,3]
[329372352,1718290362677,-559.41,0.00026575,3]
[329372353,1718290362695,-500.0,0.00026575,3]
[329372354,1718290362716,-500.0,0.00026575,3]
[329372355,1718290362731,-679.33,0.00026575,3]
[329372356,1718290362750,-500.0,0.00026575,3]
[329372357,1718290362785,-3794.7,0.00026575,3]
[329372358,1718290362825,-500.0,0.00026575,3]
[329372359,1718290362877,-500.0,0.00026575,3]
[329372360,1718290362907,-500.0,0.00026575,3]
[329372361,1718290362920,-500.0,0.00026575,3]
[329372362,1718290362937,-500.0,0.00026575,3]
[329372363,1718290362956,-1057.5,0.00026575,3]
[329372364,1718290362991,-500.0,0.00026575,3]
[329372365,1718290363005,-500.0,0.00026575,3]
[329372366,1718290363053,-2414.22,0.00026575,3]
[329372367,1718290363099,-500.0,0.00026575,3]
[329372368,1718290363129,-500.0,0.00026575,3]
[329372369,1718290363161,-500.0,0.00026575,3]
[329372370,1718290363224,-654.22,0.00026575,3]
[329372371,1718290363250,-500.0,0.00026575,3]
[329372372,1718290363271,-1125.9,0.00026575,3]
[329372373,1718290363289,-500.0,0.00026575,3]
[329372374,1718290363304,-941.25,0.00026575,3]
[329372375,1718290363343,-500.0,0.00026575,3]
[329372376,1718290363391,-500.0,0.00026575,3]
[329372377,1718290363463,-531.14,0.00026575,3]
[329372378,1718290363486,-500.0,0.00026575,3]
[329372379,1718290363532,-500.0,0.00026575,3]
[329372380,1718290363548,-1033.7,0.00026575,3]
[329372381,1718290363584,-500.0,0.00026575,3]
[329372382,1718290363609,-500.0,0.00026575,3]
[329372383,1718290363620,-2592.34,0.00026575,3]
[329372384,1718290363635,-500.0,0.00026575,3]
[329372385,1718290363656,-500.0,0.00026575,3]
[329372386,1718290363682,-500.0,0.00026575,3]
[329372387,1718290363712,-588.3,0.00026575,3]
[329372388,1718290363758,-500.0,0.00026575,3]
[329372389,1718290363788,-500.0,0.00026575,3]
[329372390,1718290363868,-1292.93,0.00026575,3]
[329372391,1718290363916,-637.83,0.00026575,3]
[329372392,1718290363936,-533.76,0.00026575,3]
[329372393,1718290363959,-816.12,0.00026575,3]
[329372394,1718290363988,-2201.98,0.00026575,3]
[329372395,1718290364001,-990.35,0.00026575,3]
[329372396,1718290364053,-866.3,0.00026575,3]
[329372397,1718290364080,-1039.78,0.00026575,3]
[329372398,1718290364110,-1827.63,0.00026575,3]
[329372399,1718290364126,-1377.98,0.00026575,3]
[329372400,1718290364148,-511.34,0.00026575,3]
[329372401,1718290364192,-500.0,0.00026575,3]
[329372402,1718290364203,-1395.84,0.00026575,3]
[329372403,1718290364213,-4825.81,0.00026575,3]
[329372404,1718290364257,-653.41,0.00026575,3]
[329372405,1718290364318,-500.0,0.00026575,3]
[329372406,1718290364339,-500.0,0.00026575,3]
[329372407,1718290364369,-689.6,0.00026575,3]
[329372408,1718290364412,-2127.64,0.00026575,3]
[329372409,1718290364425,-761.09,0.00026575,3]
[329372410,1718290364472,-500.0,0.00026575,3]